fUST/lending_fUST_20250724
["ID","MTS","AMOUNT","RATE_DAILY","PERIOD"]
[374455593,1753307441163,-460.0,0.00019647,2]
[374455595,1753307441173,-460.0,0.00019647,2]
[374455598,1753307441182,-466.52060246,0.00019647,2]
[374455601,1753307441191,-460.0,0.00019647,2]
[374455604,1753307441201,-460.0,0.00019647,2]
[374455607,1753307441211,-460.0,0.00019647,2]
[374455610,1753307441220,-462.39176709,0.00019647,2]
[374455613,1753307441230,-460.0,0.00019647,2]
[374455616,1753307441239,-460.0,0.00019647,2]
[374455619,1753307441248,-460.0,0.00019647,2]
[374455622,1753307441258,-460.0,0.00019647,2]
[374455624,1753307441267,-460.0,0.00019647,2]
[374455626,1753307441276,-460.0,0.00019647,2]
[374455628,1753307441286,-460.0,0.00019647,2]
[374455630,1753307441295,-460.0,0.00019647,2]
[374455632,1753307441304,-460.0,0.00019647,2]
[374455634,1753307441314,-460.0,0.00019647,2]
[374455636,1753307441323,-460.0,0.00019647,2]
[374455638,1753307441333,-460.0,0.00019647,2]
[374455640,1753307441342,-460.0,0.00019647,2]
[374455642,1753307441351,-460.0,0.00019647,2]
[374455644,1753307441360,-460.0,0.00019648,2]
[374455646,1753307441370,-460.0,0.00019649,2]
[374455648,1753307441379,-460.0,0.00019649,2]
[374455650,1753307441393,-460.0,0.00019649,2]
[374455652,1753307441403,-325.2509377,0.0001965,2]
[374455654,1753307441413,-460.0,0.0001965,2]
[374455656,1753307441422,-460.0,0.0001965,2]
[374455658,1753307441433,-205.23222555,0.0001965,2]
[374455660,1753307441442,-460.0,0.0001965,2]
[374455662,1753307441451,-460.0,0.00019652,2]
[374455664,1753307441461,-1172.12,0.00019652,2]
[374455666,1753307441472,-460.0,0.00019652,2]
[374455668,1753307441482,-460.0,0.00019652,2]
[374455670,1753307441492,-160.0,0.00019657,2]
[374455672,1753307441502,-701.61,0.00019726,2]
[374455674,1753307441511,-460.0,0.00019726,2]
[374455676,1753307441521,-460.0,0.00019726,2]
[374455678,1753307441530,-460.0,0.00019726,2]
[374455680,1753307441539,-460.0,0.00019726,2]
[374455682,1753307441548,-460.0,0.00019726,2]
[374455684,1753307441558,-460.0,0.00019726,2]
[374455686,1753307441567,-460.0,0.00019726,2]
[374455688,1753307441577,-408.86538466,0.00019726,2]
[374455690,1753307441587,-493.73,0.00019726,2]
[374455692,1753307441596,-460.0,0.00019726,2]
[374455694,1753307441606,-460.0,0.00019726,2]
[374455696,1753307441615,-287.44785752,0.00019726,2]
[374455698,1753307441624,-460.0,0.00019726,2]
[374455700,1753307441633,-460.0,0.00019726,2]
[374455702,1753307441643,-460.0,0.00019726,2]
[374455704,1753307441652,-839.97,0.00019726,2]
[374455706,1753307441661,-460.0,0.00019726,2]
[374455708,1753307441671,-460.0,0.00019726,2]
[374455710,1753307441680,-460.0,0.00019726,2]
[374455712,1753307441689,-460.0,0.00019726,2]
[374455714,1753307441699,-1064.18,0.00019726,2]
[374455716,1753307441709,-460.0,0.00019726,2]
[374455718,1753307441718,-460.0,0.00019726,2]
[374455720,1753307441727,-460.0,0.00019726,2]
[374455722,1753307441737,-460.0,0.00019726,2]
[374455724,1753307441746,-460.0,0.00019726,2]
[374455726,1753307441755,-460.0,0.00019726,2]
[374455728,1753307441764,-460.0,0.00019726,2]
[374455730,1753307441774,-460.0,0.00019726,2]
[374455732,1753307441783,-564.39,0.00019726,2]
[374455734,1753307441792,-460.0,0.00019726,2]
[374455736,1753307441802,-2211.53,0.00019726,2]
[374455738,1753307441811,-460.0,0.00019726,2]
[374455740,1753307441821,-460.0,0.00019726,2]
[374455742,1753307441831,-460.0,0.00019726,2]
[374455744,1753307441840,-460.0,0.00019726,2]
[374455746,1753307441850,-811.85,0.00019726,2]
[374455748,1753307441859,-460.0,0.00019726,2]
[374455750,1753307441868,-460.0,0.00019726,2]
[374455752,1753307441878,-460.0,0.00019726,2]
[374455754,1753307441888,-460.0,0.00019726,2]
[374455756,1753307441898,-460.0,0.00019726,2]
[374455758,1753307441907,-460.0,0.00019726,2]
[374455760,1753307441917,-614.85,0.00019726,2]
[374455762,1753307441926,-460.0,0.00019726,2]
[374455764,1753307441935,-460.0,0.00019726,2]
[374455766,1753307441944,-460.0,0.00019726,2]
[374455768,1753307441954,-460.0,0.00019726,2]
[374455770,1753307441963,-460.0,0.00019726,2]
[374455772,1753307441972,-460.0,0.00019726,2]
[374455774,1753307441982,-460.0,0.00019726,2]
[374455776,1753307441991,-519.30453808,0.00019726,2]
[374455778,1753307442000,-1531.0375363,0.00019826,2]
[374455780,1753307442009,-460.0,0.00019921,2]
[374455782,1753307442018,-460.0,0.00019921,2]
[374455784,1753307442027,-460.0,0.00019921,2]
[374455786,1753307442037,-460.0,0.00019921,2]
[374455788,1753307442047,-460.0,0.00019921,2]
[374455790,1753307442056,-460.0,0.00019921,2]
[374455792,1753307442066,-460.0,0.00019921,2]
[374455794,1753307442075,-460.0,0.00019921,2]
[374455796,1753307442086,-460.0,0.00019921,2]
[374455798,1753307442095,-383.78026525,0.00019921,2]
[374455800,1753307442104,-460.0,0.00019921,2]
[374455802,1753307442115,-460.0,0.00019921,2]
[374455803,1753307442124,-532.99036941,0.00019921,2]
[374455806,1753307442134,-460.0,0.00019921,2]
[374455808,1753307442143,-460.0,0.00019921,2]
[374455809,1753307442152,-460.0,0.00019921,2]
[374455811,1753307442162,-460.0,0.00019921,2]
[374455814,1753307442171,-460.0,0.00019921,2]
[374455815,1753307442181,-460.0,0.00019921,2]
[374455817,1753307442190,-460.0,0.00019921,2]
[374455819,1753307442200,-460.0,0.00019921,2]
[374455822,1753307442209,-460.0,0.00019921,2]
[374455823,1753307442219,-460.0,0.00019921,2]
[374455825,1753307442228,-460.0,0.00019921,2]
[374455828,1753307442237,-460.0,0.00019921,2]
[374455829,1753307442246,-460.0,0.00019921,2]
[374455831,1753307442254,-460.0,0.00019921,2]
[374455833,1753307442263,-460.0,0.00019921,2]
[374455835,1753307442272,-460.0,0.00019921,2]
[374455837,1753307442281,-460.0,0.00019921,2]
[374455839,1753307442291,-460.0,0.00019923,2]
[374455841,1753307442300,-460.0,0.00019923,2]
[374455843,1753307442309,-460.0,0.00019924,2]
[374455845,1753307442319,-460.0,0.00019924,2]
[374455847,1753307442328,-1172.12,0.00019926,2]
[374455849,1753307442339,-460.0,0.00019926,2]
[374455851,1753307442348,-460.0,0.00019926,2]
[374455853,1753307442357,-179.80221756,0.00019988,2]
[374455855,1753307442367,-460.0,0.00019999,2]
[374455857,1753307442376,-460.0,0.00019999,2]
[374455859,1753307442389,-460.0,0.00019999,2]
[374455861,1753307442399,-460.0,0.00019999,2]
[374455863,1753307442409,-460.0,0.00019999,2]
[374455865,1753307442418,-460.0,0.00019999,2]
[374455867,1753307442429,-636.09405441,0.0002,2]
[374455869,1753307442439,-701.61,0.0002,2]
[374455871,1753307442448,-460.0,0.0002,2]
[374455873,1753307442458,-460.0,0.0002,2]
[374455875,1753307442467,-460.0,0.0002,2]
[374455877,1753307442477,-460.0,0.0002,2]
[374455879,1753307442486,-460.0,0.0002,2]
[374455881,1753307442496,-460.0,0.0002,2]
[374455883,1753307442505,-493.73,0.0002,2]
[374455885,1753307442515,-460.0,0.0002,2]
[374455887,1753307442525,-460.0,0.0002,2]
[374455889,1753307442534,-460.0,0.0002,2]
[374455891,1753307442543,-354.96858183,0.0002,2]
[374455893,1753307442553,-460.0,0.0002,2]
[374455895,1753307442563,-839.97,0.0002,2]
[374455898,1753307442572,-460.0,0.0002,2]
[374455901,1753307442580,-460.0,0.0002,2]
[374455903,1753307442589,-460.0,0.0002,2]
[374455905,1753307442599,-1064.18,0.0002,2]
[374455907,1753307442608,-460.0,0.0002,2]
[374455909,1753307442617,-460.0,0.0002,2]
[374455912,1753307442627,-460.0,0.0002,2]
[374455914,1753307442636,-460.0,0.0002,2]
[374455916,1753307442646,-460.0,0.0002,2]
[374455918,1753307442655,-460.0,0.0002,2]
[374455920,1753307442665,-564.39,0.0002,2]
[374455922,1753307442674,-460.0,0.0002,2]
[374455923,1753307442683,-2211.53,0.0002,2]
[374455925,1753307442692,-460.0,0.0002,2]
[374455927,1753307442702,-460.0,0.0002,2]
[374455929,1753307442712,-460.0,0.0002,2]
[374455931,1753307442721,-811.85,0.0002,2]
[374455933,1753307442731,-460.0,0.0002,2]
[374455935,1753307442740,-460.0,0.0002,2]
[374455937,1753307442750,-460.0,0.0002,2]
[374455940,1753307442759,-460.0,0.0002,2]
[374455941,1753307442769,-460.0,0.0002,2]
[374455943,1753307442778,-614.85,0.0002,2]
[374455947,1753307442788,-460.0,0.0002,2]
[374455948,1753307442797,-460.0,0.0002,2]
[374455950,1753307442808,-460.0,0.0002,2]
[374455952,1753307442818,-460.0,0.0002,2]
[374455955,1753307442827,-460.0,0.0002,2]
[374455957,1753307442836,-150.0,0.00020008,2]
[374455960,1753307442846,-242.616703,0.00020187,2]
[374455961,1753307442855,-460.0,0.00020195,2]
[374455964,1753307442865,-460.0,0.00020195,2]
[374455966,1753307442874,-460.0,0.00020195,2]
[374455967,1753307442883,-460.0,0.00020195,2]
[374455970,1753307442892,-233.97,0.00020195,2]
[374455971,1753307442901,-460.0,0.00020195,2]
[374455974,1753307442910,-460.0,0.00020195,2]
[374455975,1753307442919,-460.0,0.00020195,2]
[374455978,1753307442929,-502.04755247,0.00020195,2]
[374455980,1753307442937,-460.0,0.00020195,2]
[374455981,1753307442946,-366.07535684,0.00020195,2]
[374455983,1753307442955,-460.0,0.00020195,2]
[374455985,1753307442964,-481.24664277,0.00020195,2]
[374455988,1753307442973,-151.68,0.00020195,2]
[374455990,1753307442982,-460.0,0.00020195,2]
[374455992,1753307442991,-460.0,0.00020195,2]
[374455993,1753307442999,-460.0,0.00020197,2]
[374455995,1753307443009,-460.0,0.00020197,2]
[374455997,1753307443018,-1172.12,0.000202,2]
[374455999,1753307443027,-460.0,0.000202,2]
[374456001,1753307443036,-460.0,0.000202,2]
[374456003,1753307443044,-280.0,0.00020204,2]
[374456005,1753307443053,-460.0,0.00020273,2]
[374456007,1753307443062,-701.61,0.00020273,2]
[374456009,1753307443073,-460.0,0.00020273,2]
[374456011,1753307443083,-460.0,0.00020273,2]
[374456013,1753307443093,-460.0,0.00020273,2]
[374456015,1753307443102,-358.51447499,0.00020273,2]
[374456018,1753307443111,-460.0,0.00020273,2]
[374456019,1753307443121,-493.73,0.00020273,2]
[374456021,1753307443129,-460.0,0.00020273,2]
[374456023,1753307443139,-185.80530974,0.00020273,2]
[374456025,1753307443148,-460.0,0.00020273,2]
[374456027,1753307443157,-460.0,0.00020273,2]
[374456029,1753307443167,-839.97,0.00020273,2]
[374456031,1753307443175,-460.0,0.00020273,2]
[374456033,1753307443185,-460.0,0.00020273,2]
[374456035,1753307443194,-460.0,0.00020273,2]
[374456037,1753307443203,-1064.18,0.00020273,2]
[374456039,1753307443212,-460.0,0.00020273,2]
[374456041,1753307443221,-460.0,0.00020273,2]
[374456043,1753307443230,-460.0,0.00020273,2]
[374456045,1753307443239,-460.0,0.00020273,2]
[374456047,1753307443248,-460.0,0.00020273,2]
[374456049,1753307443258,-460.0,0.00020273,2]
[374456051,1753307443267,-564.39,0.00020273,2]
[374456053,1753307443276,-460.0,0.00020273,2]
[374456055,1753307443285,-460.0,0.00020273,2]
[374456057,1753307443295,-2211.53,0.00020273,2]
[374456059,1753307443304,-245.42480978,0.00020273,2]
[374456061,1753307443314,-460.0,0.00020273,2]
[374456063,1753307443324,-811.85,0.00020273,2]
[374456065,1753307443333,-460.0,0.00020273,2]
[374456067,1753307443343,-460.0,0.00020273,2]
[374456069,1753307443352,-460.0,0.00020273,2]
[374456071,1753307443361,-460.0,0.00020273,2]
[374456073,1753307443370,-614.85,0.00020273,2]
[374456075,1753307443381,-460.0,0.00020273,2]
[374456077,1753307443392,-460.0,0.00020273,2]
[374456079,1753307443401,-460.0,0.00020273,2]
[374456080,1753307443411,-460.0,0.00020273,2]
[374456083,1753307443420,-460.0,0.00020273,2]
[374456084,1753307443430,-345.78222509,0.00020366,2]
[374456086,1753307443439,-155.79189862,0.0002043,5]
[374456088,1753307443448,-384.19829644,0.00020447,2]
[374456090,1753307443458,-460.0,0.00020469,2]
[374456092,1753307443468,-460.0,0.00020469,2]
[374456094,1753307443477,-460.0,0.00020469,2]
[374456096,1753307443486,-460.0,0.00020469,2]
[374456098,1753307443495,-460.0,0.00020469,2]
[374456100,1753307443505,-460.0,0.00020469,2]
[374456102,1753307443514,-460.0,0.00020469,2]
[374456104,1753307443524,-195.74,0.00020469,2]
[374456106,1753307443533,-460.0,0.00020471,2]
[374456108,1753307443543,-460.0,0.00020471,2]
[374456110,1753307443553,-1172.12,0.00020474,2]
[374456112,1753307443563,-460.0,0.00020474,2]
[374456114,1753307443577,-460.0,0.00020474,2]
[374456116,1753307443587,-821.7,0.00020546,2]
[374456118,1753307443596,-460.0,0.00020546,2]
[374456120,1753307443605,-460.0,0.00020546,2]
[374456122,1753307443618,-701.61,0.00020547,2]
[374456124,1753307443627,-460.0,0.00020547,2]
[374456126,1753307443636,-460.0,0.00020547,2]
[374456128,1753307443645,-460.0,0.00020547,2]
[374456130,1753307443655,-493.73,0.00020547,2]
[374456132,1753307443664,-460.0,0.00020547,2]
[374456134,1753307443673,-460.0,0.00020547,2]
[374456135,1753307443682,-460.0,0.00020547,2]
[374456137,1753307443691,-839.97,0.00020547,2]
[374456139,1753307443700,-460.0,0.00020547,2]
[374456142,1753307443710,-460.0,0.00020547,2]
[374456143,1753307443720,-460.0,0.00020547,2]
[374456145,1753307443729,-1064.18,0.00020547,2]
[374456147,1753307443738,-460.0,0.00020547,2]
[374456149,1753307443747,-460.0,0.00020547,2]
[374456151,1753307443756,-460.0,0.00020547,2]
[374456153,1753307443765,-212.19304691,0.00020547,2]
[374456155,1753307443774,-564.39,0.00020547,2]
[374456157,1753307443783,-460.0,0.00020547,2]
[374456159,1753307443793,-2211.53,0.00020547,2]
[374456161,1753307443803,-440.53,0.00020547,2]
[374456163,1753307443812,-811.85,0.00020547,2]
[374456165,1753307443821,-460.0,0.00020547,2]
[374456167,1753307443831,-460.0,0.00020547,2]
[374456169,1753307443840,-614.85,0.00020547,2]
[374456171,1753307443849,-460.0,0.00020547,2]
[374456173,1753307443858,-563.03834934,0.00020547,2]
[374456175,1753307443867,-460.0,0.00020547,2]
[374456177,1753307443877,-516.19381089,0.00020547,2]
[374456179,1753307443886,-215.84326551,0.00020558,2]
[374456181,1753307443896,-840.06856235,0.00020558,2]
[374456183,1753307443906,-12622.36869388,0.00020558,2]
[374456185,1753307443917,-160.0,0.00020558,2]
[374456187,1753307443926,-1056.96675112,0.00020721,2]
[374456189,1753307443935,-493.374,0.00020738,2]
[374456191,1753307443945,-518.96,0.00020743,2]
[374456193,1753307443955,-460.0,0.00020743,2]
[374456195,1753307443964,-460.0,0.00020743,2]
[374456197,1753307443973,-460.0,0.00020743,2]
[374456211,1753307444095,-460.0,0.00020743,2]
[374456213,1753307444105,-460.0,0.00020745,2]
[374456215,1753307444114,-460.0,0.00020745,2]
[374456217,1753307444123,-1172.12,0.00020748,2]
[374456219,1753307444132,-460.0,0.00020748,2]
[374456221,1753307444142,-460.0,0.00020748,2]
[374456223,1753307444151,-821.7,0.0002082,2]
[374456225,1753307444160,-460.0,0.0002082,2]
[374456227,1753307444171,-460.0,0.0002082,2]
[374456229,1753307444180,-701.61,0.00020821,2]
[374456231,1753307444190,-460.0,0.00020821,2]
[374456233,1753307444199,-460.0,0.00020821,2]
[374456235,1753307444208,-460.0,0.00020821,2]
[374456237,1753307444217,-493.73,0.00020821,2]
[374456239,1753307444227,-473.03,0.00020821,2]
[374456241,1753307444236,-460.0,0.00020821,2]
[374456243,1753307444247,-460.0,0.00020821,2]
[374456245,1753307444258,-839.97,0.00020821,2]
[374456247,1753307444267,-460.0,0.00020821,2]
[374456249,1753307444277,-279.8,0.00020821,2]
[374456252,1753307444287,-1064.18,0.00020821,2]
[374456253,1753307444297,-460.0,0.00020821,2]
[374456255,1753307444308,-460.0,0.00020821,2]
[374456257,1753307444319,-334.57980921,0.00020821,2]
[374456259,1753307444328,-564.39,0.00020821,2]
[374456262,1753307444338,-2211.53,0.00020821,2]
[374456264,1753307444347,-811.85,0.00020821,2]
[374456266,1753307444357,-460.0,0.00020821,2]
[374456267,1753307444366,-498.27,0.00020821,2]
[374456269,1753307444377,-614.85,0.00020821,2]
[374456272,1753307444391,-460.0,0.00020821,2]
[374456274,1753307444400,-460.0,0.00020821,2]
[374456276,1753307444409,-2849.09910179,0.00020945,2]
[374456278,1753307444419,-22769.71930789,0.00020945,2]
[374456280,1753307444429,-280.55485677,0.00020945,2]
[374456282,1753307444438,-151.0,0.00020945,2]
[374456284,1753307444448,-151.0,0.00020945,2]
[374456286,1753307444457,-151.0,0.00020945,2]
[374456288,1753307444468,-215.0738,0.00020945,2]
[374456290,1753307444476,-151.0,0.00020945,2]
[374456291,1753307444486,-151.0,0.00020945,2]
[374456294,1753307444498,-151.0,0.00020945,2]
[374456295,1753307444507,-151.0,0.00020945,2]
[374456297,1753307444516,-151.0,0.00020945,2]
[374456299,1753307444525,-151.0,0.00020945,2]
[374456301,1753307444535,-151.0,0.00020945,2]
[374456303,1753307444543,-151.0,0.00020945,2]
[374456305,1753307444553,-151.0,0.00020945,2]
[374456307,1753307444563,-151.0,0.00020945,2]
[374456310,1753307444572,-151.0,0.00020945,2]
[374456312,1753307444583,-151.0,0.00020945,2]
[374456314,1753307444593,-151.0,0.00020945,2]
[374456315,1753307444602,-151.0,0.00020945,2]
[374456318,1753307444612,-151.0,0.00020945,2]
[374456319,1753307444623,-150.0,0.00020961,2]
[374456321,1753307444632,-358.54,0.00021009,3]
[374456323,1753307444641,-717.08,0.0002101,3]
[374456325,1753307444651,-460.0,0.00021017,2]
[374456327,1753307444660,-460.0,0.00021017,2]
[374456329,1753307444669,-460.0,0.00021017,2]
[374456331,1753307444678,-460.0,0.00021017,2]
[374456333,1753307444687,-460.0,0.00021019,2]
[374456335,1753307444696,-460.0,0.00021019,2]
[374456337,1753307444705,-1172.12,0.00021022,2]
[374456339,1753307444714,-460.0,0.00021022,2]
[374456341,1753307444725,-460.0,0.00021022,2]
[374456343,1753307444735,-821.7,0.00021094,2]
[374456345,1753307444744,-460.0,0.00021094,2]
[374456347,1753307444754,-460.0,0.00021094,2]
[374456349,1753307444764,-701.61,0.00021095,2]
[374456351,1753307444775,-515.91,0.00021095,2]
[374456353,1753307444786,-460.0,0.00021095,2]
[374456355,1753307444795,-460.0,0.00021095,2]
[374456357,1753307444805,-493.73,0.00021095,2]
[374456359,1753307444814,-460.0,0.00021095,2]
[374456361,1753307444823,-344.11,0.00021095,2]
[374456363,1753307444832,-839.97,0.00021095,2]
[374456365,1753307444843,-311.67,0.00021095,2]
[374456367,1753307444852,-1064.18,0.00021095,2]
[374456369,1753307444861,-460.0,0.00021095,2]
[374456371,1753307444871,-251.16,0.00021095,2]
[374456373,1753307444880,-564.39,0.00021095,2]
[374456375,1753307444889,-2211.53,0.00021095,2]
[374456377,1753307444898,-811.85,0.00021095,2]
[374456379,1753307444907,-460.0,0.00021095,2]
[374456381,1753307444917,-614.85,0.00021095,2]
[374456383,1753307444926,-460.0,0.00021095,2]
[374456385,1753307444935,-460.0,0.00021095,2]
[374456387,1753307444944,-384.19829642,0.00021251,2]
[374456389,1753307444953,-460.0,0.00021291,2]
[374456391,1753307444962,-189.99246789,0.00021291,2]
[374456393,1753307444971,-258.85,0.00021291,2]
[374456395,1753307444980,-460.0,0.00021291,2]
[374456397,1753307444989,-460.0,0.00021293,2]
[374456399,1753307444998,-460.0,0.00021293,2]
[374456401,1753307445007,-1172.12,0.00021296,2]
[374456402,1753307445016,-460.0,0.00021296,2]
[374456404,1753307445025,-460.0,0.00021296,2]
[374456406,1753307445035,-500.0,0.000213,2]
[374456408,1753307445044,-345.78222509,0.00021331,2]
[374456410,1753307445054,-821.7,0.00021368,2]
[374456411,1753307445063,-460.0,0.00021368,2]
[374456412,1753307445072,-701.61,0.00021369,2]
[374456413,1753307445081,-460.0,0.00021369,2]
[374456414,1753307445090,-460.0,0.00021369,2]
[374456415,1753307445098,-493.73,0.00021369,2]
[374456416,1753307445107,-460.0,0.00021369,2]
[374456417,1753307445116,-839.97,0.00021369,2]
[374456418,1753307445125,-1064.18,0.00021369,2]
[374456419,1753307445134,-208.14,0.00021369,2]
[374456420,1753307445142,-564.39,0.00021369,2]
[374456421,1753307445151,-2211.53,0.00021369,2]
[374456422,1753307445160,-811.85,0.00021369,2]
[374456423,1753307445169,-460.0,0.00021369,2]
[374456424,1753307445179,-614.85,0.00021369,2]
[374456425,1753307445188,-243.02,0.00021369,2]
[374456427,1753307445197,-349.83,0.00021369,2]
[374456429,1753307445207,-500.0,0.00021442,2]
[374456431,1753307445216,-460.0,0.00021565,2]
[374456433,1753307445225,-460.0,0.00021565,2]
[374456435,1753307445234,-460.0,0.00021567,2]
[374456437,1753307445244,-460.0,0.00021567,2]
[374456439,1753307445253,-1172.12,0.0002157,2]
[374456441,1753307445263,-460.0,0.0002157,2]
[374456443,1753307445272,-460.0,0.0002157,2]
[374456445,1753307445281,-280.3,0.00021581,5]
[374456447,1753307445290,-821.7,0.00021642,2]
[374456449,1753307445299,-460.0,0.00021642,2]
[374456451,1753307445309,-701.61,0.00021643,2]
[374456453,1753307445318,-460.0,0.00021643,2]
[374456455,1753307445327,-460.0,0.00021643,2]
[374456456,1753307445337,-493.73,0.00021643,2]
[374456458,1753307445346,-460.0,0.00021643,2]
[374456460,1753307445356,-839.97,0.00021643,2]
[374456463,1753307445365,-1064.18,0.00021643,2]
[374456464,1753307445375,-564.39,0.00021643,2]
[374456467,1753307445389,-2211.53,0.00021643,2]
[374456468,1753307445398,-811.85,0.00021643,2]
[374456470,1753307445407,-200.45,0.00021643,2]
[374456472,1753307445417,-614.85,0.00021643,2]
[374456474,1753307445428,-536.19403,0.00021715,2]
[374456476,1753307445437,-429.674968,0.00021715,2]
[374456478,1753307445446,-428.0828345,0.00021715,2]
[374456481,1753307445456,-429.5320659,0.00021715,2]
[374456483,1753307445466,-316.72,0.00021839,2]
[374456484,1753307445477,-354.92,0.00021839,2]
[374456486,1753307445486,-460.0,0.00021841,2]
[374456488,1753307445496,-460.0,0.00021841,2]
[374456491,1753307445505,-151.0,0.00021841,2]
[374456492,1753307445515,-1172.12,0.00021844,2]
[374456494,1753307445524,-460.0,0.00021844,2]
[374456496,1753307445533,-460.0,0.00021844,2]
[374456498,1753307445542,-299.77258459,0.00021848,2]
[374456501,1753307445552,-280.3,0.00021892,5]
[374456504,1753307445561,-150.0,0.00021914,2]
[374456507,1753307445570,-821.7,0.00021916,2]
[374456509,1753307445579,-460.0,0.00021916,2]
[374456511,1753307445588,-701.61,0.00021917,2]
[374456513,1753307445597,-384.96,0.00021917,2]
[374456515,1753307445607,-270.18,0.00021917,2]
[374456517,1753307445616,-493.73,0.00021917,2]
[374456519,1753307445626,-523.61,0.00021917,2]
[374456521,1753307445635,-839.97,0.00021917,2]
[374456523,1753307445645,-1064.18,0.00021917,2]
[374456525,1753307445654,-564.39,0.00021917,2]
[374456527,1753307445665,-2211.53,0.00021917,2]
[374456530,1753307445675,-811.85,0.00021917,2]
[374456532,1753307445684,-614.85,0.00021917,2]
[374456534,1753307445693,-500.0,0.00022,2]
[374456536,1753307445702,-153.0,0.00022,2]
[374456538,1753307445711,-384.19829642,0.00022055,2]
[374456540,1753307445721,-460.0,0.00022115,2]
[374456542,1753307445730,-261.97,0.00022115,2]
[374456544,1753307445739,-1172.12,0.00022118,2]
[374456546,1753307445748,-460.0,0.00022118,2]
[374456548,1753307445757,-460.0,0.00022118,2]
[374456549,1753307445766,-156.366059,0.00022183,3]
[374456551,1753307445775,-200.043163,0.00022183,3]
[374456553,1753307445784,-821.7,0.0002219,2]
[374456555,1753307445794,-460.0,0.0002219,2]
[374456557,1753307445803,-701.61,0.00022191,2]
[374456559,1753307445812,-493.73,0.00022191,2]
[374456561,1753307445821,-839.97,0.00022191,2]
[374456563,1753307445831,-1064.18,0.00022191,2]
[374456565,1753307445840,-564.39,0.00022191,2]
[374456567,1753307445849,-2211.53,0.00022191,2]
[374456569,1753307445858,-811.85,0.00022191,2]
[374456571,1753307445867,-614.85,0.00022191,2]
[374456573,1753307445877,-500.0,0.000222,2]
[374456575,1753307445886,-280.3,0.00022203,5]
[374456577,1753307445895,-648.0,0.00022243,2]
[374456579,1753307445905,-2157.0,0.00022243,2]
[374456581,1753307445915,-407.0,0.00022243,2]
[374456583,1753307445925,-420.288,0.00022243,2]
[374456585,1753307445934,-969.0,0.00022243,2]
[374456587,1753307445943,-150.0,0.00022243,2]
[374456588,1753307445951,-345.78222509,0.00022296,2]
[374456590,1753307445960,-223.0315306,0.00022314,2]
[374456592,1753307445969,-800.0,0.00022338,2]
[374456594,1753307445978,-460.0,0.00022389,2]
[374456596,1753307445987,-1172.12,0.00022392,2]
[374456598,1753307445997,-460.0,0.00022392,2]